[Event "European Womens-ch 2025"]
[Site "Rhodes"]
[Date "2025.04.08"]
[Round "8.16"]
[White "Karacsonyi, Kata"]
[Black "Doluhanova, Evgeniya"]
[Result "0-1"]
[Annotator "RC"]
[ECO "C84"]
[WhiteElo "2198"]
[BlackElo "2287"]
[PlyCount "108"]
[EventDate "2025.03.29"]
[EventType "swiss"]
[EventCountry "GRE"]
[SourceTitle "playchess.com"]
[Source "ChessBase"]
[SourceQuality "1"]
[TimeControl "40/5400+30:1800+30"]

1. e4 {[%emt 0:03:43]} e5 {[%emt 0:00:02]} 2. Nf3 {[%emt 0:00:10]} Nc6 {[%emt 0:00:04]} 3. Bb5 {[%emt 0:00:09]} Nf6 {[%emt 0:00:18]} 4. d3 {[%emt 0:00:17]} d6 {[%emt 0:01:01]} 5. c3 {[%emt 0:01:43]} Be7 {[%emt 0:00:29]} 6. O-O {[%emt 0:00:29]} O-O {[%emt 0:00:23]} 7. Re1 {[%emt 0:01:39]} Bd7 {[%emt 0:03:32]} 8. Nbd2 {[%emt 0:10:16]} a6 {[%emt 0:04:09]} 9. Ba4 {[%emt 0:00:06]} b5 {[%emt 0:03:13]} 10. Bc2 {[%emt 0:00:09]} Re8 {[%emt 0:00:28]} 11. Nf1 {[%emt 0:01:06]} Bf8 {[%emt 0:00:13]} 12. Ng3 {[%emt 0:14:49]} g6 {[%emt 0:03:45]} 13. a4 {[%emt 0:08:54]} Rb8 {[%emt 0:01:48]} 14. axb5 {[%emt 0:01:54]} axb5 {[%emt 0:01:32]} 15. d4 {[%emt 0:05:38]} Bg7 {[%emt 0:07:12]} 16. Bb3 {[%emt 0:04:45]} exd4 {[%emt 0:05:09]} 17. cxd4 {[%emt 0:00:34]} Bg4 {[%emt 0:00:26]} 18. Be3 {[%emt 0:04:06]} Nh5 {[%emt 0:25:28]} 19. Nxh5 {[%emt 0:11:06]} Bxh5 {[%emt 0:05:38]} 20. Bxf7+ {[%emt 0:09:49]} Kxf7 {[%emt 0:00:14]} 21. Qb3+ {[%emt 0:09:26]} Kf8 {[%emt 0:01:01]} 22. Ng5 {[%emt 0:00:29]} d5 {[%emt 0:00:54]} 23. exd5 {[%emt 0:01:06]} Nxd4 {[%emt 0:00:41]} 24. Bxd4 {[%emt 0:03:49]} Qxg5 {[%emt 0:00:40]} 25. Bc5+ {[%emt 0:00:12]} Kg8 {[%emt 0:01:05]} 26. d6+ {[%emt 0:00:02]} Kh8 {[%emt 0:00:58]} 27. dxc7 {[%emt 0:02:06]} Qxc5 {[%emt 0:03:12]} 28. cxb8=Q {[%emt 0:00:09]} Rxb8 {[%emt 0:00:03]} 29. Qf7 {[%emt 0:02:17]} Qf8 {[%emt 0:05:17]} 30. Qd7 {[%emt 0:00:27]} g5 {[%emt 0:02:38]} 31. Qd5 {[%emt 0:02:17]} Bg6 {[%emt 0:01:46]} 32. Re2 {[%emt 0:00:57]} Qd8 {[%emt 0:03:14]} 33. Rd1 {[%emt 0:00:43]} Qxd5 {[%emt 0:02:53]} 34. Rxd5 {[%emt 0:00:03]} b4 {[%emt 0:01:41]} 35. Rxg5 {[%emt 0:01:42]} Bd3 {[%emt 0:00:29]} 36. Re1 {[%emt 0:00:46]} Bxb2 {[%emt 0:00:16]} 37. Rd5 {[%emt 0:00:27]} Bg6 {[%emt 0:00:23]} 38. f4 {[%emt 0:00:20]} Bc3 {[%emt 0:02:22]} 39. Rc1 {[%emt 0:00:38]} Be4 {[%emt 0:00:51]} 40. Rdd1 {[%emt 0:00:00]} Ra8 {[%emt 0:00:00]} 41. Kf2 {[%emt 0:04:29]} Ra2+ {[%emt 0:02:46]} 42. Ke3 {[%emt 0:00:07]} Bxg2 {[%emt 0:01:20]} 43. f5 {[%emt 0:05:24]} Kg7 {[%emt 0:01:13]} 44. Rd6 {[%emt 0:01:15]} Kf7 {[%emt 0:01:56]} 45. Rb1 {[%emt 0:05:10]} Bh3 {[%emt 0:01:27]} 46. Rb6 {[%emt 0:03:05]} Bxf5 {[%emt 0:03:26]} 47. Rf1 {[%emt 0:00:30]} Ra5 {[%emt 0:00:07]} 48. h4 {[%emt 0:01:55]} Ke7 {[%emt 0:00:24]} 49. h5 {[%emt 0:00:56]} Bd7 {[%emt 0:03:53]} 50. h6 {[%emt 0:01:22]} Re5+ {[%emt 0:00:12]} 51. Kf3 {[%emt 0:01:26]} Rf5+ {[%emt 0:01:05]} 52. Kg2 {[%emt 0:00:07]} Rg5+ {[%emt 0:00:10]} 53. Kf3 {[%emt 0:00:44]} Bg4+ {[%emt 0:00:52]} 54. Kg3 {[%emt 0:02:16]} Be2+ {[%emt 0:00:10]} 0-1

[Event "European Womens-ch 2025"]
[Site "Rhodes"]
[Date "2025.04.08"]
[Round "8.17"]
[White "Toncheva, Nadya"]
[Black "Khachatryan, Anna"]
[Result "1-0"]
[Annotator "RC"]
[ECO "B22"]
[WhiteElo "2329"]
[BlackElo "2091"]
[PlyCount "75"]
[EventDate "2025.03.29"]
[EventType "swiss"]
[EventCountry "GRE"]
[SourceTitle "playchess.com"]
[Source "ChessBase"]
[SourceQuality "1"]
[TimeControl "40/5400+30:1800+30"]

1. e4 {[%emt 0:00:04]} c5 {[%emt 0:00:16]} 2. Nf3 {[%emt 0:00:07]} e6 {[%emt 0:00:17]} 3. c3 {[%emt 0:00:06]} d5 {[%emt 0:00:14]} 4. exd5 {[%emt 0:00:07]} Qxd5 {[%emt 0:00:06]} 5. d4 {[%emt 0:00:05]} Nf6 {[%emt 0:00:05]} 6. Bd3 {[%emt 0:01:33]} Be7 {[%emt 0:07:25]} 7. O-O {[%emt 0:00:28]} O-O {[%emt 0:00:13]} 8. Be3 {[%emt 0:00:12]} cxd4 {[%emt 0:03:22]} 9. cxd4 {[%emt 0:00:12]} Nc6 {[%emt 0:00:02]} 10. Nc3 {[%emt 0:00:14]} Qa5 {[%emt 0:04:42]} 11. a3 {[%emt 0:00:57]} Nd5 {[%emt 0:13:27]} 12. Rc1 {[%emt 0:05:17]} Nxc3 {[%emt 0:03:56]} 13. Rxc3 {[%emt 0:00:10]} Bf6 {[%emt 0:06:45]} 14. Rc5 {[%emt 0:11:51]} Qd8 {[%emt 0:03:06]} 15. Bb1 {[%emt 0:18:20]} Ne7 {[%emt 0:05:52]} 16. Qc2 {[%emt 0:07:02]} g6 {[%emt 0:06:21]} 17. Bh6 {[%emt 0:05:38]} Re8 {[%emt 0:03:31]} 18. Qe4 {[%emt 0:05:35]} Nf5 {[%emt 0:10:54]} 19. Be3 {[%emt 0:01:14]} Nd6 {[%emt 0:03:35]} 20. Qf4 {[%emt 0:00:13]} b6 {[%emt 0:01:24]} 21. Rc6 {[%emt 0:00:29]} Nf5 {[%emt 0:05:04]} 22. Rfc1 {[%emt 0:00:50]} Bb7 {[%emt 0:02:04]} 23. R6c3 {[%emt 0:05:25]} Bxf3 {[%emt 0:03:42]} 24. Qxf3 {[%emt 0:06:38]} Nxd4 {[%emt 0:00:50]} 25. Qg4 {[%emt 0:01:19]} h5 {[%emt 0:02:52]} 26. Qd1 {[%emt 0:00:02]} Nf5 {[%emt 0:01:51]} 27. Rd3 {[%emt 0:01:00]} Nxe3 {[%emt 0:00:09]} 28. fxe3 {[%emt 0:00:06]} Qb8 {[%emt 0:00:33]} 29. Qf3 {[%emt 0:02:40]} Qe5 {[%emt 0:01:22]} 30. Rf1 {[%emt 0:01:24]} Kg7 {[%emt 0:00:06]} 31. Rd4 {[%emt 0:00:51]} g5 {[%emt 0:06:49]} 32. Re4 {[%emt 0:02:29]} Qxb2 {[%emt 0:00:01]} 33. Rb4 {[%emt 0:00:18]} Qc3 {[%emt 0:02:17]} 34. Rb3 {[%emt 0:00:50]} Qe5 {[%emt 0:01:24]} 35. Rb5 {[%emt 0:00:05]} g4 {[%emt 0:00:56]} 36. Qf2 {[%emt 0:00:42]} Qc3 {[%emt 0:00:04]} 37. Rxh5 {[%emt 0:00:31]} Rh8 {[%emt 0:02:04]} 38. Rg5+ {[%emt 0:00:25]} 1-0

[Event "European Womens-ch 2025"]
[Site "Rhodes"]
[Date "2025.04.08"]
[Round "8.18"]
[White "Kulon, Klaudia"]
[Black "Wikar, Martyna"]
[Result "1-0"]
[Annotator "RC"]
[ECO "B30"]
[WhiteElo "2401"]
[BlackElo "2239"]
[PlyCount "119"]
[EventDate "2025.03.29"]
[EventType "swiss"]
[EventCountry "GRE"]
[SourceTitle "playchess.com"]
[Source "ChessBase"]
[SourceQuality "1"]
[TimeControl "40/5400+30:1800+30"]

1. e4 {[%emt 0:00:10]} c5 {[%emt 0:00:13]} 2. Nf3 {[%emt 0:00:10]} Nc6 {[%emt 0:00:10]} 3. Nc3 {[%emt 0:00:07]} e5 {[%emt 0:02:34]} 4. Bc4 {[%emt 0:00:07]} Be7 {[%emt 0:00:07]} 5. d3 {[%emt 0:00:05]} d6 {[%emt 0:02:15]} 6. Nd2 {[%emt 0:00:06]} Nf6 {[%emt 0:04:27]} 7. Nf1 {[%emt 0:00:06]} Bg4 {[%emt 0:00:22]} 8. f3 {[%emt 0:00:04]} Be6 {[%emt 0:00:05]} 9. Ne3 {[%emt 0:00:04]} a6 {[%emt 0:04:59]} 10. a4 {[%emt 0:00:32]} Nb4 {[%emt 0:03:06]} 11. Qe2 {[%emt 0:00:56]} O-O {[%emt 0:15:00]} 12. O-O {[%emt 0:01:10]} Re8 {[%emt 0:01:25]} 13. Bd2 {[%emt 0:00:47]} Bf8 {[%emt 0:01:01]} 14. a5 {[%emt 0:01:38]} d5 {[%emt 0:07:00]} 15. exd5 {[%emt 0:00:33]} Nfxd5 {[%emt 0:00:51]} 16. Nexd5 {[%emt 0:00:18]} Nxd5 {[%emt 0:00:35]} 17. Nxd5 {[%emt 0:00:27]} Bxd5 {[%emt 0:00:08]} 18. Bxd5 {[%emt 0:00:17]} Qxd5 {[%emt 0:00:02]} 19. Ra4 {[%emt 0:00:08]} Re6 {[%emt 0:09:18]} 20. Bc3 {[%emt 0:03:25]} Rae8 {[%emt 0:02:13]} 21. Re1 {[%emt 0:03:13]} f5 {[%emt 0:04:53]} 22. g4 {[%emt 0:07:33]} Rg6 {[%emt 0:07:30]} 23. h3 {[%emt 0:06:48]} h5 {[%emt 0:00:57]} 24. Qg2 {[%emt 0:05:31]} Qd7 {[%emt 0:07:07]} 25. Rc4 {[%emt 0:02:55]} e4 {[%emt 0:00:08]} 26. dxe4 {[%emt 0:02:25]} fxg4 {[%emt 0:01:33]} 27. hxg4 {[%emt 0:01:57]} hxg4 {[%emt 0:07:13]} 28. e5 {[%emt 0:10:32]} g3 {[%emt 0:00:06]} 29. b3 {[%emt 0:00:38]} Qf5 {[%emt 0:02:23]} 30. Rh4 {[%emt 0:07:07]} Be7 {[%emt 0:04:55]} 31. Qh3 {[%emt 0:00:31]} Qxh3 {[%emt 0:09:07]} 32. Rxh3 {[%emt 0:00:02]} Kf7 {[%emt 0:01:01]} 33. Kg2 {[%emt 0:00:21]} Ke6 {[%emt 0:00:56]} 34. f4 {[%emt 0:10:16]} Rf8 {[%emt 0:01:13]} 35. Rf1 {[%emt 0:00:05]} Rg4 {[%emt 0:01:25]} 36. Bd2 {[%emt 0:00:06]} Rf5 {[%emt 0:01:02]} 37. Rh8 {[%emt 0:01:02]} Rh4 {[%emt 0:00:26]} 38. Rxh4 {[%emt 0:08:47]} Bxh4 {[%emt 0:00:02]} 39. Rh1 {[%emt 0:00:27]} g5 {[%emt 0:01:24]} 40. Kf3 {[%emt 0:00:00]} Rf8 {[%emt 0:00:00]} 41. c4 {[%emt 0:12:00]} Rg8 {[%emt 0:06:59]} 42. Kg2 {[%emt 0:11:17]} gxf4 {[%emt 0:07:52]} 43. Rxh4 {[%emt 0:04:28]} f3+ {[%emt 0:00:12]} 44. Kxf3 {[%emt 0:02:45]} g2 {[%emt 0:00:06]} 45. Rh6+ {[%emt 0:00:21]} Kd7 {[%emt 0:01:57]} 46. Be3 {[%emt 0:02:08]} g1=Q {[%emt 0:00:10]} 47. Bxg1 {[%emt 0:00:02]} Rxg1 {[%emt 0:00:02]} 48. Ke4 {[%emt 0:00:35]} Rd1 {[%emt 0:00:51]} 49. Rb6 {[%emt 0:00:38]} Kc7 {[%emt 0:00:54]} 50. e6 {[%emt 0:00:35]} Ra1 {[%emt 0:05:07]} 51. Kd5 {[%emt 0:03:12]} Re1 {[%emt 0:04:09]} 52. Kxc5 {[%emt 0:01:49]} Re5+ {[%emt 0:00:05]} 53. Kd4 {[%emt 0:00:31]} Re1 {[%emt 0:00:45]} 54. c5 {[%emt 0:00:44]} Rd1+ {[%emt 0:02:13]} 55. Ke5 {[%emt 0:00:13]} Re1+ {[%emt 0:01:46]} 56. Kf6 {[%emt 0:00:04]} Rf1+ {[%emt 0:00:07]} 57. Ke7 {[%emt 0:00:05]} Rf3 {[%emt 0:01:44]} 58. b4 {[%emt 0:00:13]} Rf4 {[%emt 0:00:35]} 59. Ke8 {[%emt 0:00:24]} Rf5 {[%emt 0:01:34]} 60. e7 {[%emt 0:00:14]} 1-0

[Event "European Womens-ch 2025"]
[Site "Rhodes"]
[Date "2025.04.08"]
[Round "8.19"]
[White "Krasteva, Beloslava"]
[Black "Guichard, Pauline"]
[Result "1-0"]
[Annotator "RC"]
[ECO "E29"]
[WhiteElo "2257"]
[BlackElo "2355"]
[PlyCount "79"]
[EventDate "2025.03.29"]
[EventType "swiss"]
[EventCountry "GRE"]
[SourceTitle "playchess.com"]
[Source "ChessBase"]
[SourceQuality "1"]
[TimeControl "40/5400+30:1800+30"]

1. d4 {[%emt 0:00:05]} Nf6 {[%emt 0:00:09]} 2. c4 {[%emt 0:00:14]} e6 {[%emt 0:00:14]} 3. Nc3 {[%emt 0:00:11]} Bb4 {[%emt 0:00:11]} 4. e3 {[%emt 0:00:13]} O-O {[%emt 0:00:18]} 5. a3 {[%emt 0:00:16]} Bxc3+ {[%emt 0:02:06]} 6. bxc3 {[%emt 0:00:06]} c5 {[%emt 0:00:22]} 7. Bd3 {[%emt 0:00:15]} Nc6 {[%emt 0:04:31]} 8. Rb1 {[%emt 0:00:38]} b6 {[%emt 0:07:57]} 9. e4 {[%emt 0:00:53]} d5 {[%emt 0:12:12]} 10. cxd5 {[%emt 0:04:57]} exd5 {[%emt 0:00:20]} 11. e5 {[%emt 0:00:54]} Ne4 {[%emt 0:00:57]} 12. Ne2 {[%emt 0:01:10]} f6 {[%emt 0:13:05]} 13. f3 {[%emt 0:29:41]} Ng5 {[%emt 0:00:49]} 14. O-O {[%emt 0:07:55]} Ne6 {[%emt 0:07:27]} 15. f4 {[%emt 0:07:03]} f5 {[%emt 0:08:55]} 16. Be3 {[%emt 0:06:13]} Rb8 {[%emt 0:05:15]} 17. Kh1 {[%emt 0:02:28]} Kh8 {[%emt 0:02:11]} 18. Rg1 {[%emt 0:03:23]} cxd4 {[%emt 0:06:28]} 19. cxd4 {[%emt 0:00:49]} Ne7 {[%emt 0:00:11]} 20. Nc3 {[%emt 0:02:29]} Bd7 {[%emt 0:01:22]} 21. Qb3 {[%emt 0:06:06]} Bc6 {[%emt 0:00:38]} 22. Nb5 {[%emt 0:02:02]} Bxb5 {[%emt 0:01:08]} 23. Bxb5 {[%emt 0:01:40]} Rc8 {[%emt 0:05:51]} 24. Rgc1 {[%emt 0:00:57]} Rxc1+ {[%emt 0:01:01]} 25. Rxc1 {[%emt 0:00:06]} g5 {[%emt 0:00:08]} 26. fxg5 {[%emt 0:01:50]} f4 {[%emt 0:00:26]} 27. Bf2 {[%emt 0:00:54]} Nf5 {[%emt 0:07:09]} 28. Bd3 {[%emt 0:07:03]} f3 {[%emt 0:05:48]} 29. gxf3 {[%emt 0:02:51]} Nfxd4 {[%emt 0:05:40]} 30. Bxd4 {[%emt 0:00:34]} Nxd4 {[%emt 0:02:41]} 31. Qb4 {[%emt 0:01:17]} Ne6 {[%emt 0:00:00]} 32. Qh4 {[%emt 0:03:14]} Qe7 {[%emt 0:00:00]} 33. Qh6 {[%emt 0:02:46]} Rg8 {[%emt 0:00:57]} 34. Qf6+ {[%emt 0:02:36]} Qxf6 {[%emt 0:00:24]} 35. gxf6 {[%emt 0:00:14]} Nc5 {[%emt 0:00:35]} 36. Bf5 {[%emt 0:02:03]} Rg5 {[%emt 0:00:06]} 37. e6 {[%emt 0:01:15]} Kg8 {[%emt 0:00:04]} 38. Bxh7+ {[%emt 0:01:15]} Kf8 {[%emt 0:00:21]} 39. e7+ {[%emt 0:00:36]} Ke8 {[%emt 0:00:52]} 40. Re1 {[%emt 0:00:00]} 1-0

[Event "European Womens-ch 2025"]
[Site "Rhodes"]
[Date "2025.04.08"]
[Round "8.20"]
[White "Zawadzka, Jolanta"]
[Black "Schneider, Jana"]
[Result "1/2-1/2"]
[Annotator "RC"]
[ECO "C84"]
[WhiteElo "2326"]
[BlackElo "2251"]
[PlyCount "72"]
[EventDate "2025.03.29"]
[EventType "swiss"]
[EventCountry "GRE"]
[SourceTitle "playchess.com"]
[Source "ChessBase"]
[SourceQuality "1"]
[TimeControl "40/5400+30:1800+30"]

1. e4 {[%emt 0:00:02]} e5 {[%emt 0:00:07]} 2. Nf3 {[%emt 0:00:05]} Nc6 {[%emt 0:00:06]} 3. Bb5 {[%emt 0:00:03]} a6 {[%emt 0:00:06]} 4. Ba4 {[%emt 0:00:04]} Nf6 {[%emt 0:00:10]} 5. O-O {[%emt 0:00:09]} Be7 {[%emt 0:00:10]} 6. d3 {[%emt 0:00:13]} d6 {[%emt 0:02:50]} 7. c3 {[%emt 0:01:00]} O-O {[%emt 0:00:34]} 8. Re1 {[%emt 0:02:52]} Re8 {[%emt 0:10:48]} 9. Nbd2 {[%emt 0:02:03]} Bf8 {[%emt 0:01:14]} 10. h3 {[%emt 0:05:52]} b5 {[%emt 0:02:05]} 11. Bb3 {[%emt 0:01:05]} Na5 {[%emt 0:02:25]} 12. Bc2 {[%emt 0:00:09]} c5 {[%emt 0:00:10]} 13. d4 {[%emt 0:00:29]} cxd4 {[%emt 0:04:55]} 14. cxd4 {[%emt 0:01:55]} exd4 {[%emt 0:01:08]} 15. Nxd4 {[%emt 0:00:16]} Bb7 {[%emt 0:03:13]} 16. b3 {[%emt 0:01:17]} Nc6 {[%emt 0:11:53]} 17. Nxc6 {[%emt 0:03:01]} Bxc6 {[%emt 0:00:07]} 18. Bb2 {[%emt 0:00:06]} Rc8 {[%emt 0:03:43]} 19. Qf3 {[%emt 0:06:08]} Nd7 {[%emt 0:05:20]} 20. Rad1 {[%emt 0:03:13]} Qg5 {[%emt 0:06:00]} 21. Nf1 {[%emt 0:11:06]} d5 {[%emt 0:09:23]} 22. h4 {[%emt 0:22:10]} Qxh4 {[%emt 0:03:30]} 23. exd5 {[%emt 0:01:11]} Rxe1 {[%emt 0:02:12]} 24. Rxe1 {[%emt 0:00:09]} Bxd5 {[%emt 0:01:35]} 25. Bxh7+ {[%emt 0:00:09]} Qxh7 {[%emt 0:03:48]} 26. Qxd5 {[%emt 0:00:08]} Nc5 {[%emt 0:03:58]} 27. Re3 {[%emt 0:06:05]} Qc2 {[%emt 0:09:28]} 28. Qh5 {[%emt 0:12:07]} Rc6 {[%emt 0:03:31]} 29. Rf3 {[%emt 0:00:26]} Rg6 {[%emt 0:00:43]} 30. Bd4 {[%emt 0:05:04]} Ne6 {[%emt 0:00:57]} 31. Be3 {[%emt 0:01:01]} Bc5 {[%emt 0:00:03]} 32. Bd2 {[%emt 0:04:30]} Qe4 {[%emt 0:00:58]} 33. Qf5 {[%emt 0:03:53]} Qxf5 {[%emt 0:02:02]} 34. Rxf5 {[%emt 0:00:02]} Rg4 {[%emt 0:02:18]} 35. g3 {[%emt 0:03:37]} Re4 {[%emt 0:01:20]} 36. Ne3 {[%emt 0:01:24]} Rd4 {[%emt 0:01:05]} 1/2-1/2

[Event "European Womens-ch 2025"]
[Site "Rhodes"]
[Date "2025.04.08"]
[Round "8.21"]
[White "Zhukova, Natalia"]
[Black "Zherebtsova, Alexandra"]
[Result "1/2-1/2"]
[Annotator "RC"]
[ECO "D36"]
[WhiteElo "2306"]
[BlackElo "2229"]
[PlyCount "119"]
[EventDate "2025.03.29"]
[EventType "swiss"]
[EventCountry "GRE"]
[SourceTitle "playchess.com"]
[Source "ChessBase"]
[SourceQuality "1"]
[TimeControl "40/5400+30:1800+30"]

1. d4 {[%emt 0:00:04]} Nf6 {[%emt 0:02:07]} 2. c4 {[%emt 0:00:14]} e6 {[%emt 0:00:05]} 3. Nc3 {[%emt 0:00:13]} d5 {[%emt 0:00:28]} 4. cxd5 {[%emt 0:00:32]} exd5 {[%emt 0:00:05]} 5. Bg5 {[%emt 0:00:07]} Be7 {[%emt 0:01:00]} 6. e3 {[%emt 0:00:18]} c6 {[%emt 0:00:21]} 7. Bd3 {[%emt 0:00:26]} O-O {[%emt 0:00:21]} 8. Nge2 {[%emt 0:01:14]} Re8 {[%emt 0:04:07]} 9. Qc2 {[%emt 0:01:18]} Nbd7 {[%emt 0:00:17]} 10. f3 {[%emt 0:03:40]} Nf8 {[%emt 0:07:24]} 11. Bh4 {[%emt 0:05:21]} b5 {[%emt 0:18:00]} 12. a3 {[%emt 0:03:11]} g6 {[%emt 0:06:48]} 13. O-O {[%emt 0:02:13]} Ne6 {[%emt 0:00:38]} 14. Kh1 {[%emt 0:09:22]} a6 {[%emt 0:08:55]} 15. Rad1 {[%emt 0:03:40]} Bb7 {[%emt 0:05:01]} 16. h3 {[%emt 0:07:26]} c5 {[%emt 0:11:14]} 17. dxc5 {[%emt 0:00:29]} Nxc5 {[%emt 0:00:35]} 18. Nf4 {[%emt 0:07:50]} Nxd3 {[%emt 0:12:30]} 19. Rxd3 {[%emt 0:03:53]} Qc7 {[%emt 0:01:58]} 20. Qd2 {[%emt 0:07:09]} Qe5 {[%emt 0:06:26]} 21. Bxf6 {[%emt 0:03:28]} Bxf6 {[%emt 0:00:07]} 22. Nfxd5 {[%emt 0:06:42]} Bxd5 {[%emt 0:02:25]} 23. Nxd5 {[%emt 0:00:06]} Qxb2 {[%emt 0:01:32]} 24. Qxb2 {[%emt 0:08:25]} Bxb2 {[%emt 0:00:05]} 25. Rb3 {[%emt 0:11:29]} Red8 {[%emt 0:01:10]} 26. Nc7 {[%emt 0:03:46]} Ra7 {[%emt 0:01:12]} 27. Nxb5 {[%emt 0:00:07]} axb5 {[%emt 0:00:31]} 28. Rxb2 {[%emt 0:00:05]} Rxa3 {[%emt 0:02:13]} 29. e4 {[%emt 0:00:11]} Rb8 {[%emt 0:01:18]} 30. Rfb1 {[%emt 0:00:06]} Ra5 {[%emt 0:00:08]} 31. Kg1 {[%emt 0:00:33]} h5 {[%emt 0:00:14]} 32. h4 {[%emt 0:00:56]} Kg7 {[%emt 0:00:27]} 33. Kf2 {[%emt 0:00:16]} Kf6 {[%emt 0:00:58]} 34. Ke3 {[%emt 0:00:45]} Rb7 {[%emt 0:00:21]} 35. Rb4 {[%emt 0:05:07]} Ke6 {[%emt 0:01:22]} 36. R1b2 {[%emt 0:02:41]} Rb8 {[%emt 0:01:55]} 37. Kf4 {[%emt 0:00:43]} Kf6 {[%emt 0:00:59]} 38. g4 {[%emt 0:02:30]} hxg4 {[%emt 0:00:24]} 39. fxg4 {[%emt 0:00:31]} Rb6 {[%emt 0:01:04]} 40. h5 {[%emt 0:00:00]} gxh5 {[%emt 0:00:00]} 41. gxh5 {[%emt 0:01:25]} Ra1 {[%emt 0:14:49]} 42. Rxb5 {[%emt 0:01:31]} Rxb5 {[%emt 0:00:06]} 43. Rxb5 {[%emt 0:00:04]} Rf1+ {[%emt 0:00:38]} 44. Ke3 {[%emt 0:00:24]} Re1+ {[%emt 0:01:05]} 45. Kd3 {[%emt 0:01:33]} Rf1 {[%emt 0:02:11]} 46. Rb2 {[%emt 0:03:28]} Rh1 {[%emt 0:03:29]} 47. Rf2+ {[%emt 0:00:26]} Kg7 {[%emt 0:00:36]} 48. Rf5 {[%emt 0:00:10]} f6 {[%emt 0:04:57]} 49. Kd4 {[%emt 0:01:23]} Rh2 {[%emt 0:00:21]} 50. Kd5 {[%emt 0:00:49]} Rh4 {[%emt 0:00:44]} 51. Kd4 {[%emt 0:00:41]} Rh1 {[%emt 0:00:11]} 52. Rb5 {[%emt 0:01:10]} Kh6 {[%emt 0:01:15]} 53. Rf5 {[%emt 0:00:54]} Kg7 {[%emt 0:00:15]} 54. Ke3 {[%emt 0:00:31]} Re1+ {[%emt 0:01:52]} 55. Kf3 {[%emt 0:00:37]} Rf1+ {[%emt 0:01:01]} 56. Kg3 {[%emt 0:00:19]} Rxf5 {[%emt 0:03:19]} 57. exf5 {[%emt 0:00:07]} Kh6 {[%emt 0:00:27]} 58. Kg4 {[%emt 0:00:08]} Kg7 {[%emt 0:00:17]} 59. Kf4 {[%emt 0:00:20]} Kh6 {[%emt 0:00:08]} 60. Ke4 {[%emt 0:27:23]} 1/2-1/2

[Event "European Womens-ch 2025"]
[Site "Rhodes"]
[Date "2025.04.08"]
[Round "8.22"]
[White "Gevorgyan, Maria"]
[Black "Kochavi, Dana"]
[Result "1-0"]
[Annotator "RC"]
[ECO "E90"]
[WhiteElo "2234"]
[BlackElo "2301"]
[PlyCount "65"]
[EventDate "2025.03.29"]
[EventType "swiss"]
[EventCountry "GRE"]
[SourceTitle "playchess.com"]
[Source "ChessBase"]
[SourceQuality "1"]
[TimeControl "40/5400+30:1800+30"]

1. Nf3 {[%emt 0:00:04]} Nf6 {[%emt 0:00:06]} 2. c4 {[%emt 0:00:12]} g6 {[%emt 0:00:04]} 3. Nc3 {[%emt 0:00:09]} Bg7 {[%emt 0:00:03]} 4. e4 {[%emt 0:00:09]} d6 {[%emt 0:00:04]} 5. d4 {[%emt 0:00:09]} O-O {[%emt 0:00:20]} 6. h3 {[%emt 0:00:09]} e5 {[%emt 0:00:08]} 7. d5 {[%emt 0:00:38]} Nh5 {[%emt 0:01:00]} 8. g3 {[%emt 0:00:15]} f5 {[%emt 0:01:13]} 9. exf5 {[%emt 0:00:05]} gxf5 {[%emt 0:00:06]} 10. Nh4 {[%emt 0:00:05]} Nf6 {[%emt 0:05:15]} 11. Qc2 {[%emt 0:05:23]} Qe8 {[%emt 0:13:49]} 12. Be2 {[%emt 0:20:02]} Na6 {[%emt 0:04:59]} 13. a3 {[%emt 0:00:50]} Nc5 {[%emt 0:04:04]} 14. Be3 {[%emt 0:00:38]} a5 {[%emt 0:09:23]} 15. O-O-O {[%emt 0:03:56]} Nce4 {[%emt 0:16:34]} 16. Nxe4 {[%emt 0:01:07]} Nxe4 {[%emt 0:07:33]} 17. g4 {[%emt 0:00:25]} Nc5 {[%emt 0:05:51]} 18. Nxf5 {[%emt 0:03:57]} Bxf5 {[%emt 0:00:24]} 19. gxf5 {[%emt 0:00:06]} e4 {[%emt 0:01:27]} 20. Rhg1 {[%emt 0:01:03]} Qe7 {[%emt 0:05:06]} 21. Bd4 {[%emt 0:02:42]} Rf7 {[%emt 0:00:06]} 22. Rxg7+ {[%emt 0:01:30]} Rxg7 {[%emt 0:00:06]} 23. f6 {[%emt 0:00:03]} Qf7 {[%emt 0:02:29]} 24. fxg7 {[%emt 0:00:08]} Re8 {[%emt 0:00:10]} 25. Rg1 {[%emt 0:02:47]} a4 {[%emt 0:01:01]} 26. Bxc5 {[%emt 0:00:49]} dxc5 {[%emt 0:00:06]} 27. Bg4 {[%emt 0:00:05]} Qf4+ {[%emt 0:01:21]} 28. Kb1 {[%emt 0:00:06]} Qh2 {[%emt 0:00:44]} 29. Rg3 {[%emt 0:00:11]} e3 {[%emt 0:00:15]} 30. Be6+ {[%emt 0:00:10]} Rxe6 {[%emt 0:00:08]} 31. Qxh7+ {[%emt 0:00:08]} Kxh7 {[%emt 0:00:10]} 32. g8=Q+ {[%emt 0:00:06]} Kh6 {[%emt 0:00:07]} 33. Qh8# {[%emt 0:00:04]} 1-0